[Event "2nd Bassano Easter 2022"]
[Site "Bassano del Grappa"]
[Date "2022.04.18"]
[Round "8.7"]
[White "Olde, Margareth"]
[Black "Gallego Alcazar, Andres Felipe"]
[Result "0-1"]
[ECO "D90"]
[WhiteElo "2258"]
[BlackElo "2523"]
[Annotator "TA"]
[PlyCount "110"]
[EventDate "2022.04.14"]
[EventType "swiss"]
[EventCountry "ITA"]
[SourceTitle "playchess.com"]
[Source "ChessBase"]
[SourceQuality "1"]
[TimeControl "30/3600+30:1800+30"]

{[%evp 9,110,-16,-10,-16,-2,-28,-33,-25,0,0,38,47,54,32,63,52,57,49,50,9,12,8,11,-45,-68,-67,-53,-124,-82,-196,-200,-226,-220,-235,-196,-302,-268,-279,-285,-403,-402,-390,-233,-221,-220,-314,-314,-300,-202,-206,-216,-259,-257,-261,-257,-313,-319,-329,-251,-247,-206,-206,-190,-206,-206,-195,-195,-199,-13,-13,-13,-54,0,0,0,0,0,-141,0,-398,-127,-388,-366,-366,-276,-1045,-938,-911,-580,-141,-134,-135,-142,-142,-142,-442,-142,-6621,-5804,-29977,-29978,-29997,-29998]} 1. d4 {[%emt 0:00:08]} Nf6 {[%emt 0:00:27]} 2. c4 {[%emt 0:00:07]} g6 {[%emt 0:00:07]} 3. Nc3 {[%emt 0:00:08]} d5 {[%emt 0:00:06]} 4. Nf3 {[%emt 0:00:05]} Bg7 {[%emt 0:00:06]} 5. h4 {[%emt 0:00:15]} dxc4 {[%emt 0:02:29][%cal Oc7c5]} 6. e4 {[%emt 0:00:17] D90: Grünfeld: 4 Nf3 Bg7 sidelines.} c5 {[%emt 0:00:12]} 7. d5 {[%emt 0:00:15]} b5 {[%emt 0:00:25] Inhibits Qa4.} 8. h5 {[%emt 0:01:11] Black is slightly better.} Nxh5 {[%emt 0:01:08]} (8... O-O $5 {[%cal Rb5b4]}) 9. Nxb5 {[%emt 0:00:43]} Qa5+ {[%emt 0:01:53]} 10. Nc3 $1 {[%emt 0:00:07]} Bg4 {[%emt 0:00:11] [#]} 11. Qc2 $146 {[%emt 0:03:18]} ({Predecessor:} 11. Bd2 Nd7 12. Bxc4 O-O 13. Be2 Qb6 14. Rb1 e6 15. Ng5 Bxe2 16. Qxe2 Rae8 17. d6 {0-1 (40) Bernadskiy,V (2540)-Fedoseev,V (2667) Chess.com INT 2016}) 11... Bxf3 {[%emt 0:00:53]} 12. gxf3 {[%emt 0:00:05]} Nd7 {[%emt 0:01:05]} 13. Bxc4 {[%emt 0:03:04]} Rb8 {[%emt 0:00:39]} 14. Bd2 {[%emt 0:03:29]} O-O $1 {[%emt 0:05:23]} 15. Rb1 {[%emt 0:04:49]} Qc7 {[%emt 0:09:35][%cal Oh5g3] Against f4} 16. Qc1 {[%emt 0:05:05]} (16. Kf1 $11) 16... Ne5 $15 {[%emt 0:05:26][%csl LRc4,LRf3]} 17. Be2 {[%emt 0:00:57]} c4 $1 {[%emt 0:00:10] &Nero is more active.} 18. Bh6 {[%emt 0:12:48]} (18. Qc2 $15) 18... Qd6 {[%emt 0:08:16]} 19. Bxg7 {[%emt 0:02:50]} (19. Kf1 $17) 19... Kxg7 $19 {[%emt 0:00:10]} 20. Qg5 {[%emt 0:11:05] [#]} h6 $1 {[%emt 0:00:45]} 21. Qh4 {[%emt 0:01:34]} (21. Qe3 Nf4) 21... Rh8 {[%emt 0:01:09][%cal Oh5f4]} 22. Kd2 {[%emt 0:01:20]} (22. O-O $142 Nd3 23. Bxd3 cxd3 24. Nd1) 22... Nd7 {[%emt 0:06:30]} 23. e5 {[%emt 0:05:17]} Qxe5 {[%emt 0:01:40]} (23... Nxe5 24. f4 Nd7 25. Bxh5 gxh5 26. Qxh5 $17) 24. Qxc4 {[%emt 0:00:48]} (24. Qe4 $142) 24... Ndf6 {[%emt 0:01:16] Threatens to win with ...Rhc8.} (24... Rhc8 $2 25. Rxh5 Qxh5 26. Qf4 $19) 25. Rh4 {[%emt 0:01:35]} Rhd8 {[%emt 0:04:58]} (25... Qg5+ $142 26. Kc2 Rbc8) 26. f4 {[%emt 0:02:37]} Qd6 {[%emt 0:02:22]} 27. Bxh5 {[%emt 0:00:49]} (27. f5 {keeps fighting.}) 27... Rb4 $1 {[%emt 0:00:57][%mdl 64] Skewer} ({Worse is} 27... Nxh5 28. f5 $17) (27... gxh5 28. a3 $17) (27... Nxd5 28. Nxd5 (28. Qd4+ Nf6 $17) 28... Qxd5+ 29. Qxd5 Rxd5+ 30. Ke3 gxh5 31. b4 $17) 28. Qd3 {[%emt 0:04:46]} Rxf4 {[%emt 0:01:13] Really sharp!} ({Inferior is} 28... gxh5 29. Rg1+ Kf8 30. Kc1 $19) 29. Rxf4 {[%emt 0:02:46]} Qxf4+ {[%emt 0:00:09]} 30. Qe3 {[%emt 0:00:00]} Nxd5 {[%emt 0:00:00][%mdl 64] Pin} ({And not} 30... Nxh5 31. Rd1 $19) 31. Qxf4 {[%emt 0:03:39]} Nxf4+ {[%emt 0:46:20][%mdl 64] Discovered Attack} 32. Ke3 {[%emt 0:00:10]} Nxh5 {[%emt 0:00:00][%mdl 4096] Endgame KRN-KRN} 33. b4 {[%emt 0:00:09]} Nf6 {[%emt 0:00:00]} 34. a4 {[%emt 0:00:51][%cal Ba2a4,Ba4a5,Ba5a6,Ba6a7][%mdl 32]} Nd5+ {[%emt 0:00:00]} 35. Nxd5 {[%emt 0:00:06]} Rxd5 {[%emt 0:00:00] KR-KR} 36. b5 {[%emt 0:00:11]} Kf6 {[%emt 0:00:00]} 37. a5 {[%emt 0:00:10]} Ke6 {[%emt 0:00:00]} 38. a6 {[%emt 0:07:22]} Rd8 $2 {[%emt 0:00:00]} ({Better is} 38... f6 $19 {White must now prevent ...h5.} 39. Ke4 f5+ 40. Ke3 h5) 39. b6 $11 {[%emt 0:00:20]} axb6 {[%emt 0:00:00]} 40. Rxb6+ {[%emt 0:00:10]} Kf5 {[%emt 0:00:00]} (40... Ke5 $15 41. a7 Ra8 42. f4+ Kd5) 41. Rb7 {[%emt 0:00:31]} Rd1 {[%emt 0:00:00] Hoping for ...Ra1.} 42. a7 {[%emt 0:00:46]} Ra1 {[%emt 0:00:00]} 43. Rxe7 {[%emt 0:00:08]} (43. Kd4 $1 $11 {was the only way to keep the balance.}) 43... f6 {[%emt 0:00:00]} ({Black should play} 43... Kf6 $1 $17 {[%cal Rf6e7]} 44. Rb7 h5) 44. Kf3 $2 {[%emt 0:00:08][%mdl 8192]} (44. Kd4 $11 {and White has nothing to worry.}) 44... h5 $2 {[%emt 0:00:00]} (44... g5 $19 {And now ...Ra3+ would win.} 45. Rh7 Kg6) 45. Rb7 $2 {[%emt 0:01:29][%mdl 8192]} (45. Rh7 $17) 45... Ra3+ $19 {[%emt 0:00:00]} 46. Kg2 {[%emt 0:00:09]} g5 $1 {[%emt 0:00:00][%cal Bg6g5,Bg5g4,Bg4g3][%mdl 32] ...Kg6 is the strong threat.} 47. Rb5+ $2 {[%emt 0:01:04]} (47. Rg7) 47... Kg6 $1 {[%emt 0:00:00]} 48. Rb7 {[%emt 0:00:03] [#]} g4 $1 {[%emt 0:00:00]} 49. Rc7 {[%emt 0:02:32]} h4 {[%emt 0:00:00]} 50. Rb7 {[%emt 0:01:50]} Ra2 {[%emt 0:00:00]} 51. Kg1 {[%emt 0:07:10]} f5 {[%emt 0:00:00]} 52. Rc7 $2 {[%emt 0:00:58][%mdl 8192] [#]} (52. Kh1 $17) 52... Kg5 $2 {[%emt 0:00:00]} (52... f4 $1 $19 {Strongly threatening ...g3.} 53. Rb7 g3) 53. Rb7 $2 {[%emt 0:01:45][%mdl 8192]} (53. Kg2 $17) 53... g3 {[%emt 0:00:00] ( -> ...Kg4)} 54. Rf7 {[%emt 0:05:50]} Kg4 {[%emt 0:00:00]} 55. Rb7 {[%emt 0:04:45]} Ra1+ {[%emt 0:00:00] Weighted Error Value: White=0.81/Black=0.29 (precise)} 0-1

[Event "2nd Bassano Easter 2022"]
[Site "Bassano del Grappa"]
[Date "2022.04.18"]
[Round "8.8"]
[White "Nikolov, Momchil"]
[Black "Carlo, Emanuele"]
[Result "0-1"]
[ECO "D35"]
[WhiteElo "2501"]
[BlackElo "2296"]
[Annotator "TA"]
[PlyCount "96"]
[EventDate "2022.04.14"]
[EventType "swiss"]
[EventCountry "ITA"]
[SourceTitle "playchess.com"]
[Source "ChessBase"]
[SourceQuality "1"]
[TimeControl "30/3600+30:1800+30"]

{[%evp 12,96,27,29,22,18,14,13,16,0,12,0,0,0,0,0,58,0,0,-72,-66,-71,-22,-45,-27,-162,-154,-291,-297,-290,-278,-297,-309,-399,-391,-443,-268,-270,-250,-312,-246,-356,-246,-495,-489,-494,-494,-485,-473,-733,-416,-415,-410,-369,-269,-262,-259,-268,-268,-259,-259,-313,-290,-306,-298,-310,-308,-550,-483,-483,-460,-408,-393,-648,-595,-865,-722,-851,-791,-1120,-1016,-1107,-1090,-1263,-1221,-1318,-1253]} 1. d4 {[%emt 0:01:45]} Nf6 {[%emt 0:00:06]} 2. c4 {[%emt 0:00:06]} e6 {[%emt 0:00:07]} 3. Nc3 {[%emt 0:00:13]} d5 {[%emt 0:00:05]} 4. cxd5 {[%emt 0:00:56]} Nxd5 {[%emt 0:00:12]} 5. e4 {[%emt 0:00:24]} Nxc3 {[%emt 0:00:03]} 6. bxc3 {[%emt 0:00:07]} c5 {[%emt 0:00:05]} 7. Rb1 {[%emt 0:00:07]} Be7 {[%emt 0:00:53] D35: Queen's Gambit Declined: Exchange Variation.} 8. Nf3 {[%emt 0:01:02]} O-O {[%emt 0:00:29]} 9. Bc4 {[%emt 0:01:47]} Nc6 {[%emt 0:01:01] The position is equal. 9...a6 is more advanced technology.} 10. O-O {[%emt 0:00:39]} b6 {[%emt 0:00:57]} 11. Bf4 {[%emt 0:06:17]} Bb7 {[%emt 0:02:59]} 12. Qd2 {[%emt 0:04:33]} Rc8 {[%emt 0:03:18]} 13. Rfd1 {[%emt 0:01:45] [#]} h6 $146 {[%emt 0:12:23]} ({Better is} 13... cxd4 $11 14. cxd4 Bd6) ({Predecessor:} 13... cxd4 14. cxd4 Bd6 15. Bg3 Bxg3 16. hxg3 Nb8 17. Bd3 Nd7 18. a4 Bc6 19. Ra1 a5 {1-0 (31) Volkov,S (2572)-Isanzhulov,A (2254) Sochi 2019}) 14. Bxh6 {[%emt 0:16:57]} cxd4 $1 $11 {[%emt 0:08:49]} (14... gxh6 15. Qxh6 Na5 16. dxc5 $1 Nxc4 17. Rxd8 Rfxd8 18. Ng5 Bxg5 19. Qxg5+ Kf8 20. f3 $16) 15. Bf4 {[%emt 0:15:10]} (15. Qf4 $1 $11 {keeps the balance.}) 15... Na5 {[%emt 0:03:38][%csl LRc4,LRe4]} 16. Bd3 {[%emt 0:00:03]} dxc3 {[%emt 0:01:38]} (16... Rxc3 $17 17. Qe2 Nc6) 17. Qe2 {[%emt 0:01:03]} Qe8 $36 {[%emt 0:04:23][%mdl 2048] White is under pressure.} 18. Ne5 {[%emt 0:07:56] White does not recover from this.} (18. Rbc1 $11 {and White stays safe.}) 18... f6 $19 {[%emt 0:02:31][%cal Bf7f6,Bf6e5,Be5f4][%mdl 32]} 19. Bb5 {[%emt 0:01:57] [#]} (19. Ng4 $17 {might work better.}) 19... Ba6 $1 {[%emt 0:01:07][%mdl 512]} 20. Bxa6 {[%emt 0:02:28]} fxe5 {[%emt 0:00:08]} ({Don't do} 20... c2 21. Bxc8 Qxc8 22. Ng6 $18) 21. Bxc8 {[%emt 0:01:44]} Qxc8 {[%emt 0:00:03]} 22. Rbc1 {[%emt 0:02:59]} exf4 {[%emt 0:03:49]} ({Not} 22... Rxf4 $2 23. Qd3 $19) 23. Rd3 {[%emt 0:00:09]} Nc6 {[%emt 0:06:13] aiming for ...Bf6.} 24. Rdxc3 {[%emt 0:01:24]} Bc5 {[%emt 0:00:31]} 25. Qg4 {[%emt 0:00:54]} e5 {[%emt 0:00:32]} 26. Qh5 {[%emt 0:00:26]} (26. Qxc8 $142 Rxc8 27. Rd1) 26... Qe8 {[%emt 0:00:33]} 27. Qd1 {[%emt 0:00:18]} (27. Qxe8 Rxe8 28. Rd1) 27... Nd4 {[%emt 0:00:37][%cal Of4f3]} 28. Kh1 {[%emt 0:00:34]} f3 {[%emt 0:01:57]} 29. gxf3 {[%emt 0:00:23]} Qh5 {[%emt 0:00:48]} 30. Qf1 {[%emt 0:00:00]} (30. f4 $142 Qh4 31. Rg3) 30... Rxf3 {[%emt 0:00:00]} 31. Rxf3 {[%emt 0:02:33]} Qxf3+ {[%emt 0:06:34]} 32. Qg2 {[%emt 0:00:05]} Kf7 {[%emt 0:01:00]} 33. Qxf3+ {[%emt 0:00:52]} Nxf3 {[%emt 0:00:01]} 34. Kg2 {[%emt 0:00:13]} Ng5 {[%emt 0:00:16]} 35. f3 {[%emt 0:06:59]} Ne6 {[%emt 0:00:26]} 36. Kg3 {[%emt 0:00:56]} Ke7 {[%emt 0:00:45]} 37. Kg4 {[%emt 0:00:23]} g6 {[%emt 0:00:02]} 38. h4 {[%emt 0:00:59]} b5 {[%emt 0:01:13] Hoping for ...a5.} 39. h5 $2 {[%emt 0:00:42]} (39. Rh1 {was worth a try.} Nf4 40. Rc1) 39... gxh5+ {[%emt 0:00:01]} 40. Kxh5 {[%emt 0:00:06]} Kf6 {[%emt 0:01:30] And now ...a5 would win.} 41. Kg4 {[%emt 0:01:20]} a5 {[%emt 0:01:12][%cal Ba7a5,Ba5a4][%mdl 32] Strongly threatening ...a4.} 42. Rh1 $2 {[%emt 0:00:18]} (42. Rb1 b4 43. Rh1) 42... Be3 {[%emt 0:01:05] Black is clearly winning.} 43. Rh8 {[%emt 0:00:55]} a4 {[%emt 0:00:55]} 44. Ra8 {[%emt 0:05:07]} Nd4 {[%emt 0:00:25]} 45. Kh5 {[%emt 0:01:04]} Ke6 {[%emt 0:01:07]} 46. Ra6+ {[%emt 0:01:32]} Kd7 {[%emt 0:00:19]} 47. Kg6 {[%emt 0:00:15]} Nxf3 {[%emt 0:01:16]} 48. Kf6 {[%emt 0:00:41]} Bd4 {[%emt 0:00:17] Weighted Error Value: White=0.80/Black=0.20 (precise)} 0-1

[Event "2nd Bassano Easter 2022"]
[Site "Bassano del Grappa"]
[Date "2022.04.17"]
[Round "8.9"]
[White "Weber, Samuel"]
[Black "Fischer, Daniel"]
[Result "0-1"]
[ECO "A29"]
[WhiteElo "2250"]
[BlackElo "2356"]
[Annotator "TA"]
[PlyCount "52"]
[EventDate "2022.04.14"]
[EventType "swiss"]
[EventCountry "ITA"]
[SourceTitle "playchess.com"]
[Source "ChessBase"]
[SourceQuality "1"]
[TimeControl "30/3600+30:1800+30"]

{[%evp 20,52,11,-10,0,-45,-30,-95,-94,-79,-77,-117,-114,-157,-150,-158,-153,-218,-201,-172,-145,-283,-204,-341,-327,-600,-581,-902,-894,-29989,-1118,-29990,-29991,-29991,-29992]} 1. c4 {[%emt 0:00:22]} e5 {[%emt 0:00:18]} 2. g3 {[%emt 0:01:06]} Nf6 {[%emt 0:00:06]} 3. Bg2 {[%emt 0:00:04]} d5 {[%emt 0:00:15]} 4. cxd5 {[%emt 0:00:39]} Nxd5 {[%emt 0:00:05]} 5. Nc3 {[%emt 0:00:07]} Nb6 {[%emt 0:00:06]} 6. Nf3 {[%emt 0:00:05]} Nc6 {[%emt 0:00:05][%cal Bb8c6,Bc6d4,Bd4f5,Bf5e3][%mdl 32]} 7. O-O {[%emt 0:00:09]} Be7 {[%emt 0:00:04]} 8. a3 {[%emt 0:00:04]} O-O {[%emt 0:00:08]} 9. d3 {[%emt 0:00:04]} Re8 {[%emt 0:00:12]} 10. Be3 {[%emt 0:00:14]} Bf8 {[%emt 0:00:38]} 11. Rc1 {[%emt 0:01:43]} Nd4 {[%emt 0:05:25] A29: English Opening: Four Knights Variation with 4 g3.} 12. Nd2 {[%emt 0:03:42]} Nf5 {[%emt 0:04:14] [#]} 13. Nb3 $146 {[%emt 0:13:33]} (13. Bxb6 $11 axb6 14. Bd5) ({Predecessor:} 13. Bxb6 axb6 14. e3 c6 15. Qc2 Nd6 16. Rfd1 h6 17. Nde4 Nxe4 18. Bxe4 g6 19. d4 exd4 20. exd4 {½-½ (32) Van Tienhoven,R (2393)-Tomson,H (2410) ICCF email 2009}) 13... Nxe3 $17 {[%emt 0:01:14] Black is better.} 14. fxe3 {[%emt 0:00:02]} a5 {[%emt 0:08:37]} 15. Nb1 {[%emt 0:15:22]} c6 {[%emt 0:03:22][%cal Bc7c6,Bc6d5][%mdl 32]} 16. Nc5 {[%emt 0:11:52]} Nd5 {[%emt 0:09:34]} 17. Bxd5 {[%emt 0:07:03]} cxd5 {[%emt 0:02:04]} 18. Qb3 {[%emt 0:04:00]} (18. d4 $17 {might work better.}) 18... b6 $19 {[%emt 0:04:44]} 19. Na4 {[%emt 0:00:20]} Rb8 {[%emt 0:01:05]} ({Inferior is} 19... Bh3 20. Nbc3 $17) 20. d4 {[%emt 0:08:08]} (20. Rxc8 $17 {was called for.} Rxc8 21. Nac3) 20... Qg5 {[%emt 0:06:44] aiming for ...Bh3.} 21. Qd3 {[%emt 0:01:41]} ({Wrong is} 21. Qxd5 $2 Qxe3+ 22. Kh1 Bb7 $19) (21. Nd2 $142 exd4 22. Nf3 Rxe3 23. Qc2) 21... Bh3 {[%emt 0:01:15] [#] Threatens to win with ...exd4.} 22. Rfe1 $2 {[%emt 0:00:34]} (22. Nd2 Bxf1 23. Nxf1) 22... exd4 {[%emt 0:01:46]} 23. Qxd4 {[%emt 0:00:28]} Re4 {[%emt 0:00:24] Inhibits Qf4.} 24. Qd1 {[%emt 0:00:35]} Qxe3+ {[%emt 0:00:13]} 25. Kh1 {[%emt 0:00:03]} Qf2 {[%emt 0:00:21][%csl Gf2][%cal Rh3g2]} 26. Rg1 {[%emt 0:00:05]} Rxe2 {[%emt 0:00:13] Weighted Error Value: White=1.26/Black=0.09 (flawless)} 0-1

[Event "2nd Bassano Easter 2022"]
[Site "Bassano del Grappa"]
[Date "2022.04.17"]
[Round "8.10"]
[White "Kolb, Tobias"]
[Black "Petrov, Martin"]
[Result "1/2-1/2"]
[ECO "E53"]
[WhiteElo "2316"]
[BlackElo "2542"]
[Annotator "TA"]
[PlyCount "118"]
[EventDate "2022.04.14"]
[EventType "swiss"]
[EventCountry "ITA"]
[SourceTitle "playchess.com"]
[Source "ChessBase"]
[SourceQuality "1"]
[TimeControl "30/3600+30:1800+30"]

{[%evp 22,118,3,0,56,49,64,56,56,54,54,48,81,69,89,56,94,45,91,64,77,63,70,61,66,20,31,0,26,17,16,7,25,33,33,3,3,0,10,10,10,10,10,10,10,10,18,11,15,0,0,0,1,0,0,-14,-15,-8,-11,-14,-10,-75,-12,-238,-82,-215,-197,-252,-252,-243,-106,-115,-116,-118,-104,-108,-39,-38,-25,-23,-20,-21,-9,-27,0,0,0,0,0,0,0,0,0,0,12840,12840,12841,302,289]} 1. d4 {[%emt 0:00:02]} Nf6 {[%emt 0:00:31]} 2. c4 {[%emt 0:00:03]} e6 {[%emt 0:00:10]} 3. Nc3 {[%emt 0:00:05]} Bb4 {[%emt 0:00:05]} 4. e3 {[%emt 0:00:03]} O-O {[%emt 0:00:07]} 5. Bd3 {[%emt 0:00:04]} d5 {[%emt 0:00:06]} 6. Nf3 {[%emt 0:00:05]} b6 {[%emt 0:01:04]} 7. cxd5 {[%emt 0:00:19]} exd5 {[%emt 0:00:10]} 8. O-O {[%emt 0:00:24]} c5 {[%emt 0:01:17]} 9. Ne5 {[%emt 0:05:19]} Bb7 {[%emt 0:06:13]} 10. Bd2 {[%emt 0:08:22]} Nbd7 {[%emt 0:09:57]} 11. a3 {[%emt 0:05:03]} Bxc3 {[%emt 0:04:00]} 12. Bxc3 {[%emt 0:02:18] [#]} c4 $146 {[%emt 0:01:46] E53: Nimzo-Indian: Rubinstein: Main Line (4...0-0 5 Nf3 d5 6 Bd3 c5 7 0-0).} (12... Nxe5 $11 13. dxe5 Ne4) ({Predecessor:} 12... Ne4 13. Bxe4 dxe4 14. Nxd7 Qxd7 15. dxc5 Qxd1 16. Rfxd1 bxc5 17. Rd7 Bc6 18. Rd6 Ba4 19. Ra6 Bb3 20. Ra5 {½-½ (38) Suleymenov,A (2373)-Eliseev,E (2403) Dnipro 2019}) 13. Bc2 $14 {[%emt 0:01:01]} a5 {[%emt 0:00:55]} 14. a4 {[%emt 0:05:18]} Qe7 {[%emt 0:04:34] White is slightly better.} 15. f3 {[%emt 0:06:24]} Rfe8 {[%emt 0:04:30]} 16. Re1 {[%emt 0:01:58]} (16. Qe1 {looks sharper.} Rac8 17. Qg3 Nf8 18. Rab1) 16... Nf8 {[%emt 0:01:13]} 17. Qd2 {[%emt 0:03:07]} Ne6 {[%emt 0:04:08]} 18. Qf2 {[%emt 0:02:54]} Rad8 {[%emt 0:01:30]} 19. Rad1 {[%emt 0:02:07]} (19. Reb1 $16) 19... Rd6 {[%emt 0:03:56]} (19... Rc8 $14) 20. Qg3 {[%emt 0:07:20]} Nf8 {[%emt 0:01:08]} 21. Re2 {[%emt 0:05:05]} Bc8 {[%emt 0:03:18]} 22. Qh4 {[%emt 0:01:20] 0x0.0023821a128edp-1022s more active pieces.} Ng6 {[%emt 0:03:15]} 23. Nxg6 {[%emt 0:01:44]} (23. Qf2 $14) 23... hxg6 {[%emt 0:00:05]} 24. Rde1 {[%emt 0:00:25]} Re6 {[%emt 0:03:50]} (24... Bf5 $5 {[%cal Rf5c2]}) 25. e4 {[%emt 0:04:56]} dxe4 {[%emt 0:00:56]} 26. fxe4 {[%emt 0:00:03]} Bb7 {[%emt 0:00:21][%cal Rb7e4]} 27. e5 {[%emt 0:01:16]} Nd5 {[%emt 0:00:47]} 28. Qxe7 {[%emt 0:02:06]} R6xe7 {[%emt 0:01:33]} 29. h4 {[%emt 0:04:35]} Bc8 {[%emt 0:07:58]} 30. Be4 {[%emt 0:00:00]} Be6 {[%emt 0:00:00]} 31. Rc1 {[%emt 0:06:33]} Rd7 {[%emt 0:02:16]} 32. g3 {[%emt 0:02:12]} Rc8 {[%emt 0:01:46]} 33. Kf2 {[%emt 0:01:26]} Ne7 {[%emt 0:03:04]} 34. Rd2 {[%emt 0:08:20]} Bd5 {[%emt 0:01:25]} 35. Ke3 {[%emt 0:03:12]} Bxe4 {[%emt 0:06:07]} 36. Kxe4 {[%emt 0:00:08] Hoping for d5.} Rcd8 {[%emt 0:00:04]} 37. Rdd1 {[%emt 0:02:49]} Rd5 {[%emt 0:02:40]} 38. Be1 {[%emt 0:00:21]} Nc6 {[%emt 0:00:50][%cal Oc6e5] And now ...Nxe5! would win.} 39. Rxc4 {[%emt 0:00:40] [#]} Nxe5 {[%emt 0:00:07][%mdl 64] Pin} 40. Rc7 {[%emt 0:01:10]} Ng4 {[%emt 0:00:34]} 41. Rc6 {[%emt 0:01:22]} (41. Kf3 $11 {remains equal.} Nf6 42. Rc2) 41... Rf5 {[%emt 0:01:15]} (41... f5+ $1 $17 42. Kf3 Ne5+ $1 43. dxe5 Rxd1) 42. Rc3 $2 {[%emt 0:04:32]} (42. Rdc1 $1 $11) 42... Re8+ $19 {[%emt 0:06:07]} 43. Kd3 {[%emt 0:00:04]} Rf1 {[%emt 0:00:05]} 44. Rcc1 {[%emt 0:01:57]} (44. Kd2 {is a better defense.}) 44... Ne3 {[%emt 0:12:32]} 45. Rd2 {[%emt 0:00:54] [#]} Nf5 {[%emt 0:00:07]} (45... Rf3 $1 $19 {and Black stays clearly on top.} 46. Rf2 Rxg3 47. Rxf7 Rh3) 46. g4 $17 {[%emt 0:02:22]} Rf3+ {[%emt 0:03:45]} ({Not} 46... Rexe1 47. Rc8+ Kh7 48. gxf5 $15) 47. Kc2 {[%emt 0:00:03]} Ne3+ {[%emt 0:00:04]} 48. Kb1 {[%emt 0:00:06] [#]} Nxg4 {[%emt 0:00:09]} ({Black should play} 48... Nd5 $1 $17 49. Rdc2 Rf4) 49. d5 $15 {[%emt 0:00:48]} Nf6 {[%emt 0:00:18] aiming for ...Rf1.} 50. d6 {[%emt 0:01:01] d7 is the strong threat.} Rd8 {[%emt 0:00:30]} 51. Rd4 {[%emt 0:01:09] Prevents Rf4.} Rf5 {[%emt 0:01:36]} 52. b4 {[%emt 0:00:33]} Rd5 {[%emt 0:01:03]} 53. Rxd5 {[%emt 0:00:34]} Nxd5 {[%emt 0:00:01]} 54. bxa5 {[%emt 0:00:05]} bxa5 $11 {[%emt 0:00:04] KRB-KRN} 55. Rc6 {[%emt 0:00:04]} Nb4 {[%emt 0:00:44]} 56. Bxb4 {[%emt 0:00:28]} axb4 {[%emt 0:00:45]} 57. a5 {[%emt 0:02:21] Threatens to win with a6.} Kf8 $2 {[%mdl 8192]} (57... f5 $11) 58. a6 $18 {[%emt 0:00:30] White wants to mate with a7.} Ke8 59. a7 $2 {[%emt 0:00:00]} (59. Rc7 Rxd6 60. a7) 59... Kd7 {[%mdl 32768] Quite a comeback for White.  Weighted Error Value: White=0.39/Black=0.18 (very precise) . An unexpected result.} 1/2-1/2